[Event "45th FIDE Olympiad 2024"]
[Site "Budapest"]
[Date "2024.09.12"]
[Round "2.104"]
[White "Lavrencic, Matic"]
[Black "Kojima, Shinya"]
[Result "1-0"]
[ECO "B12"]
[WhiteElo "2360"]
[BlackElo "2299"]
[Annotator "TA"]
[PlyCount "55"]
[EventDate "2024.09.05"]
[EventType "team-tourn"]
[EventCountry "HUN"]
[SourceTitle "playchess.com"]
[Source "ChessBase"]
[SourceQuality "1"]
[WhiteTeam "Slovenia"]
[BlackTeam "Japan"]
[WhiteTeamCountry "SLO"]
[BlackTeamCountry "JPN"]
[TimeControl "40/5400+30:1800+30"]

{[%evp 9,55,19,28,19,41,43,42,29,33,27,42,58,45,22,53,36,23,0,37,31,28,0,197,197,188,174,193,196,270,251,254,243,500,487,583,576,619,556,712,704,1003,993,1226,702,3275,3411,1945,420]} 1. e4 c6 2. d4 d5 3. e5 Bf5 4. Nf3 e6 5. Be2 Nd7 6. Nbd2 a5 7. a4 h6 8. O-O {White is slightly better.} Ne7 9. Nb3 Qc7 10. Bd2 g5 11. Rc1 Bg7 12. c4 O-O 13. Qe1 b6 14. cxd5 Nxd5 15. h4 gxh4 (15... g4 $11 {and Black has nothing to worry.} 16. Nh2 h5) 16. Nxh4 $18 Bh7 17. f4 Rae8 18. f5 {Bb5 would now be deadly.} exf5 (18... f6 $142 19. fxe6 Rxe6) 19. Nxf5 Bxf5 20. Rxf5 f6 $2 (20... Nxe5 21. dxe5 Rxe5) 21. Bc4 {[#] Black must now prevent Bxd5+. A strong pair of Bishops. White is clearly winning.} Qd8 22. e6 {[%cal Be5e6,Be6e7][%mdl 32]} Nb8 {Black is weak on the light squares} 23. Qe4 Qd6 24. Re1 Ne7 {[#]} 25. Qg4 $1 {[%cal Od2h6] Strongly threatening Bxh6!} Nxf5 (25... h5 26. Qxh5) 26. e7+ Rf7 27. Bxf7+ Kxf7 28. Qh5+ {Weighted Error Value: White=0.11 (very precise) /Black=0.56.  Loses game:     	---       	Black=1      Mistake:       	---       	Black=2      Inaccurate:     	White=1     	Black=2      OK:         	White=9     	Black=5} ({Inferior is} 28. Qxf5 Rxe7 29. Rxe7+ Qxe7 $11) 1-0

[Event "45th FIDE Olympiad 2024"]
[Site "Budapest"]
[Date "2024.09.12"]
[Round "2.105"]
[White "Brkic, Ante"]
[Black "Zhakshylykov, Erzhan"]
[Result "1-0"]
[ECO "C95"]
[WhiteElo "2642"]
[BlackElo "2327"]
[Annotator "TA"]
[PlyCount "79"]
[EventDate "2024.09.05"]
[EventType "team-tourn"]
[EventCountry "HUN"]
[SourceTitle "playchess.com"]
[Source "ChessBase"]
[SourceQuality "1"]
[WhiteTeam "Croatia"]
[BlackTeam "Kyrgyzstan"]
[WhiteTeamCountry "CRO"]
[BlackTeamCountry "KGZ"]
[TimeControl "40/5400+30:1800+30"]

{[%evp 20,79,45,37,42,39,84,110,101,101,101,79,104,106,116,107,110,104,120,115,107,114,121,110,121,115,186,65,112,31,118,107,220,237,242,231,239,193,235,254,268,264,255,254,213,229,280,270,243,259,358,390,703,705,667,687,677,679,5018,5010,29990,29991]} 1. e4 e5 2. Nf3 Nc6 3. Bb5 a6 4. Ba4 Nf6 5. O-O Be7 6. Re1 b5 7. Bb3 d6 8. c3 O-O 9. h3 Nb8 {[%cal Bc6b8,Bb8d7,Bd7b6,Bb6c4][%mdl 32]} 10. d4 Nbd7 11. c4 b4 {[#]} 12. c5 $1 Bb7 (12... exd4 13. cxd6) 13. Qc2 $1 {Threatens to win with c6.} exd4 {White is better.} 14. c6 d3 15. Qc4 {White is much more active.} Nb6 {[#]} 16. cxb7 $1 Nxc4 17. bxa8=Q Qxa8 18. Bxc4 Nxe4 19. Nbd2 $1 {Chess con chili.} (19. Bxd3 Nc5 20. Be2 (20. Rxe7 Nxd3 21. Rxc7 Rc8 $11) 20... Bf6 $11) 19... d5 {[#]} 20. Bxd5 $1 {[%mdl 512]} Qxd5 21. Rxe4 Bf6 22. Rxb4 Re8 {[#] Prevents Ne4.} (22... c5 $16 {was worth a try.} 23. Rc4 h6) 23. Rc4 (23. Nf1 $1 $18) 23... Re2 (23... g5 $14) 24. a4 (24. Rxc7 $16 h6 25. Nc4 (25. Rc8+ Kh7 $14)) 24... Qe6 {[#]} ({Black should try} 24... c5 $14) 25. Ra3 $1 $16 Qb6 (25... Qf5 $16 {was necessary.}) 26. Ne4 $18 (26. Rxd3 $2 {leads to mate.} Qxf2+ 27. Kh2 Qxg2#) 26... Be7 27. Rxd3 f5 28. Be3 Rxe3 29. Rxe3 fxe4 30. Rcxe4 ({Don't take} 30. Rexe4 $6 Bd6 31. Ng5 Qb8 $18) 30... Bf6 31. b3 h6 32. g4 Qc5 33. Kg2 Qd5 34. h4 {[%cal Og4g5,Bh3h4,Bh4g5,Bg5g6][%mdl 32]} Kh7 35. g5 hxg5 (35... Bb2 36. Re7 Bc1) 36. hxg5 Bb2 37. Re6 Qf5 38. R3e4 {g6+ would now be deadly.} Ba3 39. g6+ Kg8 40. b4 {Weighted Error Value: White=0.12 (very precise) /Black=0.39.  Mistake:       	White=2     	Black=5      Inaccurate:     	---       	Black=2      OK:         	White=8     	Black=5      Best:        	White=5     	Black=6      Strong:       	White=3     	---} 1-0

[Event "45th FIDE Olympiad 2024"]
[Site "Budapest"]
[Date "2024.09.12"]
[Round "2.106"]
[White "Khoroshev, Nikita"]
[Black "Martinovic, Sasa"]
[Result "1/2-1/2"]
[ECO "D00"]
[WhiteElo "2355"]
[BlackElo "2563"]
[Annotator "TA"]
[PlyCount "72"]
[EventDate "2024.09.05"]
[EventType "team-tourn"]
[EventCountry "HUN"]
[SourceTitle "playchess.com"]
[Source "ChessBase"]
[SourceQuality "1"]
[WhiteTeam "Kyrgyzstan"]
[BlackTeam "Croatia"]
[WhiteTeamCountry "KGZ"]
[BlackTeamCountry "CRO"]
[TimeControl "40/5400+30:1800+30"]

{[%evp 9,72,0,0,-2,0,0,0,0,0,0,0,0,0,-29,-26,-35,-33,-47,-39,-49,-37,-62,-55,-56,-54,-56,-47,-54,-51,-75,-70,-136,-143,-120,-132,-139,-128,-160,-94,-147,-125,-116,-38,-36,-37,-34,-31,-12,-12,-79,-76,-84,-81,-117,-46,-39,0,0,0,0,0,0,0,0,0]} 1. d4 Nf6 2. Bf4 d5 3. e3 c5 4. c3 Nc6 5. Nd2 Bf5 6. Qb3 Qd7 7. Ngf3 c4 8. Qd1 e6 9. Be2 b5 10. Nh4 Bd6 11. O-O Bxf4 12. exf4 O-O 13. Re1 b4 14. Qc1 Rfc8 15. Bd1 Qd6 16. Nxf5 exf5 17. Nf3 Rab8 18. Ne5 g6 19. f3 Rc7 20. Bc2 (20. Nxc6 $15 Rxc6 (20... Qxc6 21. Re5 $17) 21. g3) 20... Ne7 $1 $17 21. g4 Ne8 22. g5 Ng7 23. Kh1 Nh5 (23... Nc6 $142 {Strongly threatening ...Nd8.} 24. Nxc6 Rxc6 (24... Qxc6 $2 25. Re5 $17)) 24. Ba4 ({White should try} 24. Qe3) 24... Rbb7 25. Qe3 {[#]} Kf8 (25... Qa6 $1 $17 {[%cal Ra6a4]} 26. Bd1 bxc3 27. bxc3 Qa3) 26. cxb4 $15 Rxb4 27. b3 Ng7 {[%cal Bh5g7,Bg7e6,Be6d4][%mdl 32]} 28. Rac1 Ne6 29. a3 (29. Rc2 $11) 29... Rbb7 $17 30. bxc4 dxc4 31. Rxc4 {[#]} Rxc4 ({Better is} 31... Nd5 $1 $17 {[%cal Rd5e3]} 32. Qc1 Rxc4 (32... Nexf4 33. Bc6 $11) 33. Qxc4 Rc7 (33... Ndxf4 $2 {is the wrong capture.} 34. Qc8+ Nd8 35. Nc6 $18)) 32. Nxc4 $15 Qxd4 33. Qxd4 {The position is equal.} Nxd4 34. Rd1 Ne6 (34... Nxf3 $2 {perishes.} 35. Kg2 $18) 35. h4 $1 Rc7 36. Ne5 Kg7 {Weighted Error Value: White=0.14 (very precise) /Black=0.12 (very precise) .  Mistake:       	White=3     	Black=3      Inaccurate:     	White=2     	Black=1      OK:         	White=14    	Black=14     Best:        	White=1     	---        Strong:       	White=1     	Black=1} 1/2-1/2

[Event "45th FIDE Olympiad 2024"]
[Site "Budapest"]
[Date "2024.09.12"]
[Round "2.107"]
[White "Livaic, Leon"]
[Black "Orozbaev, Eldiyar"]
[Result "1/2-1/2"]
[ECO "A07"]
[WhiteElo "2550"]
[BlackElo "2376"]
[Annotator "TA"]
[PlyCount "120"]
[EventDate "2024.09.05"]
[EventType "team-tourn"]
[EventCountry "HUN"]
[SourceTitle "playchess.com"]
[Source "ChessBase"]
[SourceQuality "1"]
[WhiteTeam "Croatia"]
[BlackTeam "Kyrgyzstan"]
[WhiteTeamCountry "CRO"]
[BlackTeamCountry "KGZ"]
[TimeControl "40/5400+30:1800+30"]

{[%evp 9,120,8,15,0,19,21,15,24,28,2,11,18,0,2,17,22,33,0,26,51,35,25,66,76,70,0,0,0,0,0,0,0,64,59,93,81,85,35,38,0,0,0,0,-1,23,-14,-18,-12,-5,0,-2,-58,0,0,0,0,0,0,0,0,28,12,35,32,58,0,54,7,78,31,39,47,72,39,77,0,0,0,0,0,0,0,0,0,0,0,74,33,38,67,274,0,0,0,0,0,0,0,0,0,0,-10,0,-14,-13,-12,0,-20,-20,-20,-20,-20,-20]} 1. Nf3 d5 2. g3 Bg4 3. Bg2 e6 4. h3 Bh5 5. c4 c6 6. O-O Nf6 {[%cal Bg8f6,Bf6d7,Bd7e5,Be5c4][%mdl 32]} 7. d4 Nbd7 8. cxd5 exd5 9. Ne5 Nxe5 10. dxe5 Nd7 11. Nc3 Nxe5 (11... Qe7 $5) 12. g4 Bg6 13. f4 $1 {[%mdl 1024] White has compensation.} Bc5+ 14. e3 $1 Nc4 {[%cal Of7f6] aiming for ...f6!} 15. f5 $1 Qe7 {[%cal Oe8c8]} 16. Kh1 $1 O-O-O {[%cal Oe7e5]} 17. e4 (17. Qc2 $1 $14) 17... d4 $1 $11 (17... dxe4 $2 18. Qc2 $18 (18. Qe2 Nd6 $18)) 18. Na4 Ne3 $36 {[%mdl 2048] White is under pressure.} 19. Bxe3 dxe3 20. Qf3 {[%cal Oa4c5] Hoping for Nxc5!} Bd4 21. Nc3 f6 22. fxg6 hxg6 23. Rae1 ({White should play} 23. Nd1 $16) 23... Bb6 $14 24. Rxe3 Bxe3 25. Qxe3 Kb8 26. Ne2 Qb4 27. b3 g5 {Inhibits Nf4.} 28. Ng3 Qd2 29. Qxd2 Rxd2 30. e5 Rxa2 (30... fxe5 $15 31. a4 Rhd8) 31. exf6 $11 gxf6 32. Rxf6 Rb2 33. Rf3 Re8 {Inhibits Ne4.} 34. Ne4 Rg8 (34... Rxe4 35. Rf8+ Kc7 36. Bxe4 $18) (34... Rb1+ 35. Kh2 Rg8 36. Bf1 $16) 35. Kh2 a5 36. Kg3 Kc7 37. Nc5 ({White should try} 37. Rc3 $14) 37... b6 (37... Rc2 $11 38. Rf7+ Kb6) 38. Na4 (38. Rf7+ $14 Kd6 (38... Kc8 $2 39. Ra7 $18) 39. Ne4+ Ke6 40. Rf3) 38... Rb1 (38... Rc2 $1 $11) 39. Nc3 (39. Rc3 $1 $16 c5 40. Rf3) 39... Re1 (39... Rxb3 $2 {perishes.} 40. Nd5+ cxd5 41. Rxb3 $18) 40. Rf7+ Kd6 41. Rf6+ Re6 {[#]} 42. Rxe6+ (42. Ne4+ $1 $16 Ke7 43. Rf5) 42... Kxe6 43. Bxc6 {Threatens to win with Bd5+.} Ke5 {White must now prevent ...Rc8.} 44. Bb5 Rh8 45. Bc4 Kd4 46. Nb5+ Kc5 {[%cal Oa5a4]} 47. Nc3 Rh6 (47... Kd4 $11 {remains equal.} 48. Na4 Rb8) 48. Ne4+ $16 Kd4 $1 49. Nxg5 a4 $1 {[#]} 50. bxa4 Kxc4 $18 {[%mdl 4096] Endgame. KR-KN. The position is equal.} 51. h4 Kd5 52. h5 Rc6 53. Kf4 {Kf5 is the strong threat.} Rf6+ 54. Ke3 Rf8 55. Nf3 Ra8 56. g5 Ke6 57. Nd4+ Kf7 58. Ke4 Rxa4 59. Kd5 Ra5+ 60. Kc6 Rxg5 {Weighted Error Value: White=0.20 (precise) /Black=0.14 (very precise) .  Missed win:     	White=1     	---        Mistake:       	White=7     	Black=5      Inaccurate:     	White=4     	Black=5      OK:         	White=17    	Black=20     Best:        	White=2     	Black=2      Strong:       	White=4     	Black=3} 1/2-1/2

[Event "45th FIDE Olympiad 2024"]
[Site "Budapest"]
[Date "2024.09.12"]
[Round "2.108"]
[White "Abdyzhapar, Asylbek"]
[Black "Stevic, Hrvoje"]
[Result "0-1"]
[ECO "D17"]
[WhiteElo "2357"]
[BlackElo "2531"]
[Annotator "TA"]
[PlyCount "166"]
[EventDate "2024.09.05"]
[EventType "team-tourn"]
[EventCountry "HUN"]
[SourceTitle "playchess.com"]
[Source "ChessBase"]
[SourceQuality "1"]
[WhiteTeam "Kyrgyzstan"]
[BlackTeam "Croatia"]
[WhiteTeamCountry "KGZ"]
[BlackTeamCountry "CRO"]
[TimeControl "40/5400+30:1800+30"]

{[%evp 15,166,31,22,19,13,10,21,18,14,2,19,0,8,0,7,-19,-7,-8,-10,-20,-3,0,0,-1,0,-12,-13,-42,-49,-106,-33,-58,-54,-47,-48,-41,-41,-48,-34,-62,-49,-62,-60,-70,-62,-77,-71,-77,-89,-86,-54,-57,-54,-79,-23,-16,-20,-15,-14,-14,-15,-15,-15,-16,0,-59,-59,-91,-81,-91,-91,-83,-43,-43,-43,-43,-39,-47,-47,-46,-45,-50,-40,-50,-52,-51,-37,-37,-40,-40,-33,-37,-35,-35,-35,-43,-50,-51,-52,-222,-222,-373,-373,-373,-373,-373,-373,-373,-373,-373,-373,-345,-283,-1502,-1502,-1502,-1502,-1502,-1024,-933,-720,-1502,-1502,-1494,-1494,-1494,-1494,-1494,-1494,-1494,-1494,-1487,-1487,-1487,-1487,-1487,-1487,-1487,-1487,-1480,-1480,-1472,-1465,-1341,0,-1287,-1237,-1440,-1388,-1232,-683,-652,-600]} 1. d4 d5 2. c4 c6 3. Nf3 Nf6 4. Nc3 dxc4 5. a4 Bf5 6. Ne5 Nbd7 7. Nxc4 Nb6 8. Ne5 a5 9. e3 Nbd7 10. Bd3 Bxd3 11. Nxd3 {The position is equal.} Qb6 12. O-O e6 13. Bd2 Be7 14. Rb1 O-O 15. b4 axb4 (15... Bxb4 16. Na2 $14) 16. Nxb4 Bxb4 17. Na2 c5 18. dxc5 Nxc5 19. Bxb4 Rfc8 (19... Rxa4 $2 20. Bxc5 Qxc5 21. Qxa4 $18) 20. Nc3 Qa6 21. Nb5 Nxa4 {Excellent horsemanship.} 22. Bd6 ({White should try} 22. Qe2 $15) 22... Ne8 (22... Rd8 $17 {Hoping for ...Ne8.} 23. Qf3 Rxd6 24. Nxd6 Qxd6 25. Qxb7 Rf8) 23. Be7 Nc3 24. Nxc3 Rxc3 25. Qd4 {Dodges b5} Rc4 26. Qb2 Rb8 (26... Rc7 27. Ra1 Rxe7 28. Rxa6 bxa6 29. Ra1 $11) 27. Qe5 Rbc8 {[%cal Bb8c8,Bc8c7,Bc7d7][%mdl 32]} 28. h3 h6 29. Rfd1 Qc6 30. Qb2 Rc7 31. Ba3 Nf6 32. Bd6 Rd7 (32... Rc2 {simplifies} 33. Qb5 Rd7 34. Qxc6 bxc6 35. Be5 Rxd1+ 36. Rxd1 Nd5) 33. Be5 Rc2 34. Qa3 Ne4 ({Black should play} 34... Kh7 $17 35. Bxf6 gxf6) 35. Qa8+ $11 Kh7 {The board is on fire.} 36. Rxd7 Qxd7 37. Qxb7 Qxb7 38. Rxb7 {[%mdl 4096] Endgame. KRB-KRN} f6 (38... Nxf2 $2 39. Rxf7 Kg6 40. Rxf2 $18) 39. Bg3 (39. f3 $2 Nc5 40. Rc7 fxe5 $19) 39... e5 40. h4 (40. Bh4 $11) 40... Re2 $15 41. Rb3 Kg6 {Black is more active.} 42. Ra3 h5 43. Kf1 Rb2 {...Rb1+ is the strong threat.} 44. Ra7 $1 Rb1+ 45. Ke2 Rg1 46. Kf3 Kf5 {And now ...Re1 would win.} 47. Rxg7 Re1 {[%cal Re4d2]} 48. Bh2 Nd2+ 49. Kg3 Rh1 {Threatens to win with ...Ke4.} 50. f3 Nf1+ 51. Kf2 Nxh2 {KRN-KR} 52. e4+ $1 Ke6 53. Rh7 Ra1 54. Rxh5 Nf1 55. Rh8 Nd2 56. h5 Nc4 57. h6 $2 {[#] Black converts the advantage convincingly.} (57. Kg3 $15) 57... Nd6 $1 $19 58. g4 $2 (58. h7 Rh1 59. Kg3) 58... Nf7 59. Re8+ Kd7 60. Rb8 {[#]} Rh1 $1 (60... Nxh6 61. Rb7+ Ke8 62. Rb6 $17) 61. Rb7+ Ke6 62. Rb6+ Nd6 63. Kg3 Rxh6 64. f4 $2 (64. Kg2) 64... exf4+ 65. Kxf4 Rh1 66. Ra6 Rf1+ 67. Ke3 Rc1 68. Kf4 Rc5 69. Rb6 Re5 70. Kf3 Ke7 ({Stronger than} 70... Rxe4 71. Rxd6+ Kxd6 72. Kxe4 $11) 71. Rb4 Kf7 72. Rd4 Ne8 73. Rd7+ Kg6 74. Rd8 Ng7 75. Rg8 Kf7 76. Ra8 Ne6 77. Ra4 Kg6 78. Rb4 Nc5 79. Rb5 Ne6 ({Weaker is} 79... Nxe4 80. Rxe5 Ng5+ (80... fxe5 81. Kxe4 Kg5 82. Kxe5 $11) 81. Rxg5+ Kxg5 82. Kg3 $11) 80. Rb4 $1 Ra5 {Prevents Ra4. Black is clearly winning.} 81. Rb6 Ng5+ 82. Ke3 Ra3+ 83. Kd4 Ra4+ {Weighted Error Value: White=0.18 (very precise) /Black=0.07 (flawless) .  Loses game:     	White=1     	---        Mistake:       	White=4     	Black=2      Inaccurate:     	White=4     	Black=2      OK:         	White=13    	Black=25     Best:        	White=11    	Black=5      Strong:       	White=2     	Black=2} 0-1

[Event "45th FIDE Olympiad 2024"]
[Site "Budapest"]
[Date "2024.09.12"]
[Round "2.109"]
[White "Saraci, Nderim"]
[Black "Vocaturo, Daniele"]
[Result "1/2-1/2"]
[ECO "B45"]
[WhiteElo "2446"]
[BlackElo "2600"]
[Annotator "TA"]
[PlyCount "60"]
[EventDate "2024.09.05"]
[EventType "team-tourn"]
[EventCountry "HUN"]
[SourceTitle "playchess.com"]
[Source "ChessBase"]
[SourceQuality "1"]
[WhiteTeam "Kosovo"]
[BlackTeam "Italy"]
[WhiteTeamCountry "KOS"]
[BlackTeamCountry "ITA"]
[TimeControl "40/5400+30:1800+30"]

{[%evp 12,60,28,29,34,52,42,37,35,25,45,0,0,-5,0,0,0,-95,-123,-87,-104,-86,-39,-26,-23,-22,0,-12,0,-4,-7,0,0,0,0,-19,0,0,0,-2,0,0,9,8,29,17,65,70,72,67,105]} 1. e4 c5 2. Nf3 e6 3. d4 cxd4 4. Nxd4 Nf6 5. Nc3 Nc6 6. Ndb5 Bc5 7. Bf4 {[#] And now Nc7+ would win.} O-O 8. Bc7 Qe7 {...d5 is the strong threat.} 9. Bd6 $1 Bxd6 10. Qxd6 Qd8 11. Qc7 (11. Nc7 $14 Rb8 12. Be2) 11... d5 $11 12. exd5 exd5 {Strongly threatening ...Qe8+.} 13. O-O-O d4 {Hoping for ...a6.} 14. Bc4 (14. Ne2 $11 {keeps the balance.}) 14... a6 $17 15. Qxd8 ({Don't go for} 15. Rxd4 $2 Nxd4 16. Bxf7+ Kh8 17. Qxd8 Rxd8 $19) 15... Rxd8 16. Nc7 {[%cal Bb5c7,Bc7d5,Bd5b6,Bb6c4,Bc4d2,Bd2e4,Be4g3,Bg3e4,Be4c3][%mdl 32] [#]} Rb8 ({Black should play} 16... Ra7 $1 $17 17. N3d5 b5) 17. N3d5 $15 Nxd5 18. Nxd5 Bg4 (18... b5 $5 19. Bb3 $8 a5 $15 (19... Be6 20. Nf4 $11)) 19. f3 $1 Be6 20. Nb6 Bxc4 21. Nxc4 b5 22. Nd2 Rbc8 23. a3 {Dodges Nb4} a5 24. Kb1 a4 25. Ne4 Ne5 26. Ng3 d3 {Inhibits Ne2.} 27. cxd3 Nxd3 28. Ne4 f6 (28... Rb8 $11 {is more appropriate.}) 29. Nc3 $14 b4 30. axb4 a3 {Weighted Error Value: White=0.12 (very precise) /Black=0.09 (flawless) .  Mistake:       	White=2     	Black=2      Inaccurate:     	---       	Black=1      OK:         	White=12    	Black=8      Best:        	White=1     	Black=1      Strong:       	White=2     	---} 1/2-1/2

[Event "45th FIDE Olympiad 2024"]
[Site "Budapest"]
[Date "2024.09.12"]
[Round "2.110"]
[White "Moroni, Luca Jr"]
[Black "Ondozi, Murtez"]
[Result "1-0"]
[ECO "D55"]
[WhiteElo "2558"]
[BlackElo "2371"]
[Annotator "TA"]
[PlyCount "157"]
[EventDate "2024.09.05"]
[EventType "team-tourn"]
[EventCountry "HUN"]
[SourceTitle "playchess.com"]
[Source "ChessBase"]
[SourceQuality "1"]
[WhiteTeam "Italy"]
[BlackTeam "Kosovo"]
[WhiteTeamCountry "ITA"]
[BlackTeamCountry "KOS"]
[TimeControl "40/5400+30:1800+30"]

{[%evp 82,157,729,460,900,900,707,381,371,358,519,512,508,508,871,453,440,439,462,446,937,451,424,372,381,345,347,351,345,333,355,355,378,380,414,358,485,429,562,578,582,560,606,591,685,690,687,669,645,616,2207,2207,2263,1951,1581,1612,2467,2406,1480,1215,1365,950,1795,1661,1465,1373,4535,5116,5712,5213,29965,6194,11268,6295,29978,29975,29966,29967]} 1. c4 c6 2. Nc3 d5 3. d4 Nf6 4. Nf3 e6 5. Bg5 Be7 6. e3 h6 7. Bf4 O-O 8. Rc1 {D55: Queen's Gambit Declined: 4 Bg5 Be7: Lines without ...h6 and 6...h6 7 Bxf6.} Nbd7 9. cxd5 exd5 10. h3 Re8 11. Bd3 Bb4 12. a3 $146 ({Predecessor:} 12. O-O Ne4 13. Bxe4 dxe4 14. Nd2 Nf6 15. Qc2 Bf5 16. Nc4 Bxc3 17. bxc3 Re6 18. Ne5 {1-0 Castillo Larenas,M-Tapia,A Vina del Mar 1945 (9)}) 12... Ba5 13. O-O Ne4 14. b4 Nxc3 15. Rxc3 Bc7 16. Bxc7 Qxc7 17. b5 c5 18. dxc5 Nxc5 19. Bb1 Qd6 20. Qd4 b6 21. Rd1 Bb7 22. e4 Rad8 23. e5 Qe7 24. Re3 g6 25. Qf4 Ne6 26. Qxh6 d4 27. Rb3 Bd5 28. Rb4 Bxf3 29. gxf3 Qf8 30. Qh4 Qg7 31. f4 g5 32. fxg5 Qxe5 33. Rb3 Kf8 34. g6 d3 35. Rbxd3 Rxd3 36. Bxd3 fxg6 37. Bxg6 Re7 38. Kh1 Rc7 39. Be4 Rf7 40. Bg6 Rc7 41. a4 Re7 $2 (41... Qc3 42. Bh5 Rh7 43. Rd5) 42. Rd3 Rc7 (42... Kg8 $142 43. Re3 (43. Qxe7 Qe1+ 44. Kh2 Qxf2+ 45. Kh1 Qf1+ 46. Kh2 Qf2+ 47. Kh1 Qe1+ 48. Kh2 Qf2+ $11) 43... Qd5+ 44. Kh2 Ng5) 43. Rf3+ $18 Kg8 44. Rg3 Rg7 45. Qe4 Qa1+ (45... Qxe4+ $142 46. Bxe4 Nf4) 46. Kh2 $18 Qf6 47. Qf5 Qe7 (47... Qxf5 $142 48. Bxf5 Nf4) 48. Qe5 Nf8 49. Qd5+ Kh8 50. Qd4 Ne6 (50... Nd7 $142 51. Re3 Qf6 52. Re8+ Rg8) 51. Qe5 (51. Qd2 $142 Qh4 52. Rg4) 51... Nf8 $18 52. Qc3 Qc7 53. Be4 Qxc3 54. Rxc3 Re7 55. Bd5 Rd7 56. Bf3 Ng6 57. Be4 Ne5 58. f3 Kg7 59. Kg3 Kf6 60. f4 Nf7 61. Rc6+ Ke7 62. h4 Rd4 63. Bc2 Nd8 64. Rc7+ Kd6 65. Rxa7 Rc4 66. Bf5 Ne6 67. Bxe6 Kxe6 68. Kg4 Rc1 69. Rb7 Rg1+ 70. Kf3 Ra1 71. Rxb6+ Kf5 72. Ra6 Ra3+ 73. Ke2 Kxf4 74. Kd2 Ke4 75. Kc2 Rh3 76. Rc6 (76. b6 $142 Rh2+ 77. Kc3 Rh3+ 78. Kc4 Rh1 79. b7 Rb1 80. Ra7 Kf4 81. a5) 76... Kd5 77. Rc3 Rxh4 78. Kb3 Kd6 79. Rc4 1-0

[Event "45th FIDE Olympiad 2024"]
[Site "Budapest"]
[Date "2024.09.12"]
[Round "2.111"]
[White "Uruci, Endrit"]
[Black "Sonis, Francesco"]
[Result "1-0"]
[ECO "B51"]
[WhiteElo "2348"]
[BlackElo "2554"]
[Annotator "TA"]
[PlyCount "88"]
[EventDate "2024.09.05"]
[EventType "team-tourn"]
[EventCountry "HUN"]
[SourceTitle "playchess.com"]
[Source "ChessBase"]
[SourceQuality "1"]
[WhiteTeam "Kosovo"]
[BlackTeam "Italy"]
[WhiteTeamCountry "KOS"]
[BlackTeamCountry "ITA"]
[TimeControl "40/5400+30:1800+30"]

{[%evp 11,88,0,10,0,33,19,10,20,53,22,64,39,70,54,47,57,81,67,91,86,86,91,83,75,87,68,333,330,318,263,275,248,247,222,283,277,293,297,299,299,277,292,459,325,289,230,342,330,335,341,331,345,356,350,364,364,425,430,551,551,560,527,605,549,622,612,651,658,805,785,1058,1036,1381,1172,3408,4708,1843,1330,956]} 1. e4 c5 2. Nf3 d6 3. Bb5+ Nd7 4. d4 cxd4 5. Qxd4 a6 6. Bxd7+ Bxd7 7. Bg5 {[%cal Bc1g5,Bg5h4,Bh4g3][%mdl 32]} Bc6 (7... Rc8 $5) 8. Nc3 h6 9. Bh4 {The position is equal.} Nf6 10. O-O-O e5 11. Qd3 g5 12. Bg3 b5 13. a3 Qb8 14. Rhe1 Be7 15. Nd5 Bxd5 16. exd5 {[%cal Rf3e5] aiming for Nxe5!} Nd7 17. Qf5 {[%cal Rf3e5]} Qc8 18. Nd4 {White has more active pieces.} Nc5 $2 {[%mdl 8192] [#] This costs Black the game.} (18... Kf8 $14) 19. Bxe5 $1 $18 {[%mdl 512]} O-O (19... Qxf5 20. Nxf5 dxe5 21. Rxe5 $18) 20. Qxc8 Raxc8 21. Nf5 {[%csl LRd6,LRe7,LRh6]} Rfe8 22. Bd4 (22. Nxd6 Bxd6 23. Bxd6 Rxe1 (23... Nd3+ 24. Rxd3 Rxe1+ 25. Kd2 $15) 24. Rxe1 Nd3+ 25. Kd1 Nxe1 26. Kxe1 Rxc2 $19) (22. Nxh6+ Kh7) 22... Bf8 23. Rxe8 Rxe8 24. Bxc5 dxc5 {[%mdl 4096] Endgame. KRB-KRN} 25. d6 Rd8 26. Rd5 Kh7 (26... f6 {was called for.} 27. g3 (27. Rxc5 Bxd6 28. Rc6 Bxh2 $18) 27... Kf7 28. Rxc5 h5) 27. Kd2 (27. Rxc5 Bxd6 28. Nxd6 Rxd6 $11) 27... Kg6 28. Kd3 (28. Rxc5 Bxd6 29. Nxd6 Rxd6+ 30. Ke3 Re6+ 31. Kd3 Rf6 $16) 28... Kf6 (28... h5 {was necessary.} 29. c4 (29. Rxc5 Bxd6 30. Rd5 Bc7 $18) 29... Kf6 30. cxb5 (30. Rxc5 Bxd6 31. Nxd6 Rxd6+ 32. Kc2 bxc4 $16) 30... axb5) 29. Rxc5 Bxd6 30. Rd5 Bc7 31. Rxd8 Bxd8 32. Nxh6 {KB-KN} Kg6 33. Ng4 f5 34. Ne5+ {White is clearly winning.} Kf6 35. Nd7+ Ke7 36. Nc5 a5 37. Kd4 Bc7 38. h3 Kd6 39. b4 axb4 40. axb4 Bb6 41. g3 {[%cal Bg2g3,Bg3h4,Bh4h5][%mdl 32]} Kc6 42. h4 gxh4 43. gxh4 Bd8 44. h5 {Ke5 is the strong threat.} Bf6+ {Weighted Error Value: White=0.14 (very precise) /Black=0.43.  Loses game:     	---       	Black=1      Mistake:       	---       	Black=2      Inaccurate:     	White=1     	Black=3      OK:         	White=17    	Black=12     Best:        	White=1     	---        Brilliant:      	White=1     	---} 1-0